bitfinex-derivatives/quotes_SOLF0:USTF0_20250505
["timestamp","ask_amount","ask_price","bid_price","bid_amount"]
[1746485025633,6.7779,147.56,147.5,4.0986]
[1746485026340,14.01290116,147.57,147.5,4.0986]
[1746485026742,14.01290116,147.57,147.54,6.7786]
[1746485026930,6.778,147.56,147.54,6.7786]
[1746485028045,6.778,147.56,147.53,6.779]
[1746485028234,6.7784,147.55,147.53,6.779]
[1746485029944,6.7784,147.55,147.52,6.7795]
[1746485030746,6.7784,147.55,147.53,6.7792]
[1746485031045,6.7784,147.55,147.5,4.0986]
[1746485031344,6.7784,147.55,147.52,6.7795]
[1746485031944,7.23530116,147.57,147.53,6.7792]
[1746485031945,6.7781,147.56,147.53,6.7792]
[1746485032140,7.23530116,147.57,147.53,6.7792]
[1746485032339,7.23530116,147.57,147.5,4.0986]
[1746485032744,6.7785,147.55,147.52,6.7795]
[1746485035446,7.23530116,147.57,147.52,6.7795]
[1746485035950,6.7789,147.54,147.51,6.7799]
[1746485036848,6.7794,147.53,147.5,6.7804]
[1746485037047,6.7794,147.53,147.49,206.35176426]
[1746485037249,7.23530116,147.57,147.49,206.35176426]
[1746485037547,6.7787,147.55,147.52,6.7795]
[1746485038247,6.7781,147.56,147.53,6.7792]
[1746485038652,6.7781,147.56,147.54,6.7786]
[1746485039549,6.7781,147.56,147.53,6.779]
[1746485040456,6.7783,147.55,147.53,6.779]
[1746485040752,7.23530116,147.58,147.53,6.779]
[1746485041947,6.7781,147.56,147.53,6.779]
[1746485042755,7.23530116,147.58,147.53,6.779]
[1746485043253,6.7783,147.56,147.53,6.779]
[1746485045354,7.23530116,147.58,147.53,6.779]
[1746485045759,6.7781,147.56,147.53,6.779]
[1746485046753,6.7783,147.55,147.53,6.779]
[1746485047057,7.23530116,147.58,147.53,6.779]
[1746485047357,6.7781,147.56,147.53,6.779]
[1746485051765,4.63380568,147.54,147.53,6.779]
[1746485052071,4.63380568,147.54,147.52,6.7793]
[1746485052565,4.63380568,147.54,147.5,2.1015]
[1746485053764,4.63380568,147.54,147.52,6.7793]
[1746485053965,4.63380568,147.56,147.5,2.1015]
[1746485055167,4.63380568,147.56,147.55,6.7783]
[1746485055866,6.7778,147.57,147.55,6.7783]
[1746485057664,29.2,147.59,147.5,2.1015]
[1746485057870,7.2380849,147.56,147.5,2.1015]
[1746485058264,6.7795,147.53,147.5,8.8817]
[1746485058463,7.2380849,147.56,147.5,8.8817]
[1746485058668,7.2380849,147.56,147.5,2.1015]
[1746485059469,6.7786,147.55,147.52,6.7796]
[1746485060770,6.7788,147.54,147.51,6.7799]
[1746485061176,7.2380849,147.56,147.5,2.1015]
[1746485061375,27.28,147.55,147.51,6.78]
[1746485061875,6.779,147.54,147.51,6.78]
[1746485066880,6.7793,147.53,147.51,6.78]
[1746485070877,6.7793,147.53,147.5,8.882]
[1746485072178,6.78,147.52,147.49,210.98406426]
[1746485075875,4.63521619,147.51,147.49,210.98406426]
[1746485076483,4.63521619,147.51,147.5,6.7806]
[1746485077785,6.78,147.52,147.5,6.7806]
[1746485078083,4.63521619,147.51,147.5,6.7806]
[1746485083488,11.41551619,147.51,147.48,1.0]
[1746485083692,4.63521619,147.49,147.48,1.0]
[1746485083989,4.63521619,147.49,147.48,7.7813]
[1746485086584,4.63521619,147.49,147.43,28.28]
[1746485086785,4.63521619,147.45,147.43,1.0]
[1746485086984,4.63521619,147.45,147.44,6.7834]
[1746485088688,4.63521619,147.45,147.43,7.7835]
[1746485089194,4.63521619,147.45,147.44,6.7834]
[1746485090189,4.63521619,147.45,147.43,7.7836]
[1746485090389,11.41821619,147.45,147.43,7.7836]
[1746485090693,4.63521619,147.45,147.43,1.0]
[1746485092291,4.63521619,147.45,147.44,6.7834]
[1746485092692,4.63521619,147.45,147.43,7.7835]
[1746485093894,11.41831619,147.45,147.43,1.0]
[1746485096294,4.63521619,147.45,147.43,1.0]
[1746485096597,11.41841619,147.45,147.43,1.0]
[1746485100798,6.7834,147.44,147.43,1.0]
[1746485101699,4.63521619,147.45,147.37,26.7456]
[1746485101894,4.63521619,147.4,147.37,26.7456]
[1746485102093,4.63521619,147.4,147.39,6.7854]
[1746485103601,4.63521619,147.4,147.38,6.7859]
[1746485103801,4.63521619,147.4,147.37,0.2656]
[1746485105002,4.63521619,147.4,147.38,6.7859]
[1746485106504,11.42051619,147.4,147.38,6.7859]
[1746485107602,4.63521619,147.4,147.38,6.7859]
[1746485109397,11.42041619,147.4,147.38,6.7859]
[1746485109702,4.63521619,147.41,147.37,1.2656]
[1746485110103,11.42021619,147.41,147.38,6.7858]
[1746485110399,4.63521619,147.41,147.38,6.7858]
[1746485110801,11.42041619,147.41,147.38,6.7858]
[1746485111204,4.63521619,147.39,147.37,8.052]
[1746485111805,11.42091619,147.39,147.37,8.052]
[1746485112101,11.42091619,147.39,147.37,1.2656]
[1746485112401,11.42091619,147.39,147.37,1.0]
[1746485113204,6.7861,147.38,147.37,1.0]
[1746485113398,4.63521619,147.39,147.37,1.0]
[1746485114903,4.63521619,147.39,147.37,7.7866]
[1746485115709,4.63521619,147.39,147.38,6.7861]
[1746485115904,4.63521619,147.41,147.38,6.7861]
[1746485117909,4.63521619,147.41,147.39,6.7857]
[1746485118110,4.63521619,147.41,147.37,1.0]
[1746485118310,11.42021619,147.41,147.38,6.7859]
[1746485120609,4.63521619,147.41,147.39,6.7855]
[1746485122616,11.42001619,147.41,147.39,6.7855]
[1746485124219,4.63521619,147.41,147.39,6.7855]
[1746485124515,4.63521619,147.41,147.4,6.7852]
[1746485125917,37.89921619,147.43,147.41,6.7845]
[1746485126921,37.89921619,147.43,147.42,6.7843]
[1746485126922,31.11521619,147.43,147.42,6.7843]
[1746485128519,4.63521619,147.43,147.42,6.7843]
[1746485130225,4.63521619,147.43,147.39,2.1222]
[1746485130520,11.41921619,147.43,147.39,2.1222]
[1746485130720,11.41921619,147.43,147.4,6.7849]
[1746485131220,11.41921619,147.43,147.41,6.7848]
[1746485131716,6.784,147.43,147.41,6.7848]
[1746485131920,6.7836,147.44,147.39,2.1222]
[1746485132814,6.7836,147.44,147.42,6.7842]
[1746485133419,6.7836,147.44,147.41,6.7846]
[1746485133924,6.784,147.43,147.41,6.7846]
[1746485135228,6.7836,147.44,147.41,6.7846]
[1746485135428,6.7836,147.44,147.42,6.7841]
[1746485137325,6.7836,147.44,147.41,6.7845]
[1746485138533,6.7836,147.44,147.42,6.7842]
[1746485143034,11.41841619,147.45,147.42,6.7842]
[1746485143335,4.63521619,147.45,147.42,6.7842]
[1746485144736,11.41841619,147.45,147.42,6.7842]
[1746485144937,4.63521619,147.45,147.42,6.7842]
[1746485145837,6.7834,147.44,147.42,6.7842]
[1746485146937,11.41911619,147.43,147.37,1.0]
[1746485147136,4.63521619,147.42,147.37,1.0]
[1746485147327,4.63521619,147.43,147.37,5.63521619]
[1746485147531,4.63521619,147.43,147.4,6.7849]
[1746485148439,11.41911619,147.43,147.4,6.7849]
[1746485149937,96.36350913,147.62,147.37,5.63521619]
[1746485149938,74.5799,147.6,147.41,4.63521619]
[1746485150241,4.63521619,147.48,147.41,4.63521619]
[1746485150441,6.7823,147.47,147.43,6.7834]
[1746485150834,6.7823,147.47,147.42,2.0779]
[1746485151139,6.783,147.45,147.42,8.862]
[1746485151338,26.16,147.55,147.44,4.63521619]
[1746485151532,4.63521619,147.52,147.44,4.63521619]
[1746485151735,6.7805,147.51,147.48,6.7813]
[1746485151937,4.63521619,147.52,147.45,2.1237]
[1746485152240,4.63521619,147.52,147.48,6.7813]
[1746485152241,11.41531619,147.52,147.48,6.7813]
[1746485152443,11.41531619,147.52,147.45,2.1237]
[1746485152936,6.7802,147.51,147.45,2.1237]
[1746485153141,4.63521619,147.5,147.45,2.1237]
[1746485153336,11.41611619,147.5,147.47,6.7817]
[1746485153739,6.7809,147.5,147.47,6.7817]
[1746485154339,6.7822,147.47,147.43,26.16]
[1746485154639,6.7822,147.47,147.42,2.0779]
[1746485155043,6.7822,147.47,147.44,6.7832]
[1746485155446,6.7825,147.46,147.44,6.7832]
[1746485155847,7.24491656,147.49,147.44,6.7832]
[1746485156340,6.7822,147.47,147.44,6.7832]
[1746485157046,6.7825,147.46,147.44,6.7832]
[1746485158247,26.14,147.54,147.42,9.32281656]
[1746485158449,33.38491656,147.54,147.42,9.32281656]
[1746485159043,6.7802,147.51,147.48,6.7814]
[1746485159750,6.7811,147.49,147.46,6.7822]
[1746485160145,7.24491656,147.51,147.44,26.14]
[1746485160347,6.781,147.5,147.47,6.7818]
[1746485160748,6.7799,147.52,147.49,6.7808]
[1746485161149,33.38491656,147.54,147.45,1.9878]
[1746485161354,6.7804,147.51,147.48,6.7813]
[1746485162445,6.7807,147.5,147.48,6.7813]
[1746485165451,6.7803,147.51,147.48,6.7813]
[1746485166257,6.7803,147.51,147.49,6.7811]
[1746485166552,26.14,147.54,147.45,4.0139]
[1746485166757,26.14,147.54,147.51,6.7799]
[1746485167053,6.7795,147.53,147.51,6.7799]
[1746485167354,26.14,147.54,147.45,4.0139]
[1746485167552,6.7781,147.56,147.46,7.24491656]
[1746485167852,4.1001,147.57,147.54,6.7786]
[1746485167853,2.1022,147.57,147.54,6.7786]
[1746485168643,6.7781,147.56,147.53,6.779]
[1746485169649,6.7781,147.56,147.54,6.7788]
[1746485169857,26.14,147.59,147.5,26.14]
[1746485170254,26.14,147.59,147.51,2.016]
[1746485170556,26.14,147.59,147.54,6.7784]
[1746485171058,6.7775,147.57,147.54,6.7784]
[1746485171259,26.14,147.59,147.53,6.779]
[1746485171661,26.14,147.59,147.51,3.9704]
[1746485171859,26.14,147.59,147.53,6.7789]
[1746485172256,6.7781,147.56,147.53,6.7789]
[1746485173762,7.24491656,147.57,147.5,26.14]
[1746485173959,7.24491656,147.57,147.47,28.0836]
[1746485174159,4.0799,147.56,147.47,28.0836]
[1746485174359,7.24491656,147.54,147.47,26.14]
[1746485174559,7.24491656,147.54,147.46,1.0]
[1746485174763,7.24491656,147.51,147.46,1.0]
[1746485174959,26.14,147.5,147.46,1.0]
[1746485175559,32.921,147.5,147.46,1.0]
[1746485176167,32.921,147.5,147.47,6.7819]
[1746485176669,6.7811,147.49,147.47,6.7819]
[1746485178566,32.9208,147.5,147.47,6.7819]
[1746485180075,32.9208,147.5,147.48,6.7814]
[1746485180269,26.14,147.53,147.46,1.0]
[1746485180870,6.78,147.52,147.49,6.7808]
[1746485182272,6.7798,147.52,147.49,6.7808]
[1746485184477,26.14,147.53,147.46,1.0]
[1746485184976,6.7815,147.49,147.46,7.7823]
[1746485186876,7.24491656,147.51,147.46,1.0]
[1746485187368,6.782,147.47,147.46,1.0]
[1746485191077,33.26491656,147.48,147.38,232.47539813]
[1746485191273,7.24491656,147.45,147.39,7.07675]
[1746485191576,6.7841,147.43,147.39,7.07675]
[1746485192076,6.7841,147.43,147.4,6.7852]
[1746485192273,32.8036,147.44,147.39,0.29125]
[1746485192475,26.02,147.44,147.4,6.785]
[1746485193376,6.7839,147.43,147.4,6.785]
[1746485194378,6.7843,147.42,147.4,6.785]
[1746485194971,26.02,147.44,147.39,0.29125]
[1746485195977,6.7846,147.42,147.39,7.07665]
[1746485196181,7.24491656,147.43,147.39,0.29125]
[1746485196678,6.7847,147.42,147.39,0.29125]
[1746485197274,26.02,147.44,147.39,0.29125]
[1746485197781,32.8037,147.44,147.41,6.7846]
[1746485198083,26.02,147.44,147.39,0.29125]
[1746485198582,33.26491656,147.44,147.39,0.29125]
[1746485199081,6.7851,147.41,147.39,0.29125]
[1746485200279,6.7852,147.4,147.39,0.29125]
[1746485200676,2.0532,147.43,147.39,0.29125]
[1746485200882,6.7851,147.41,147.39,0.29125]
[1746485201184,2.0532,147.43,147.39,0.29125]
[1746485202186,6.7852,147.4,147.39,0.29125]
[1746485203089,6.7859,147.39,147.37,1.0]
[1746485203984,6.7861,147.38,147.37,1.0]
[1746485206399,26.04,147.4,147.37,1.0]
[1746485206897,26.04,147.4,147.38,6.7859]
[1746485207197,26.04,147.4,147.37,1.0]
[1746485207597,6.7844,147.42,147.4,6.7852]
[1746485208405,32.8241,147.43,147.41,6.7848]
[1746485208591,26.04,147.43,147.37,1.0]
[1746485208991,6.7846,147.42,147.39,6.7853]
[1746485209800,6.7846,147.42,147.4,6.7851]
[1746485211100,6.7848,147.41,147.39,6.7855]
[1746485211699,26.04,147.43,147.37,1.0]
[1746485212201,6.7844,147.42,147.4,6.7851]
[1746485214502,26.04,147.43,147.38,6.7859]
[1746485214801,6.7851,147.41,147.37,1.0]
[1746485215100,26.04,147.43,147.37,7.7864]
[1746485215902,6.7855,147.4,147.37,7.7864]
[1746485218198,6.785,147.41,147.37,7.7864]
[1746485218391,26.04,147.43,147.37,1.0]
[1746485218802,6.785,147.41,147.38,6.7859]
[1746485220706,6.7852,147.4,147.38,6.7859]
[1746485221404,6.785,147.41,147.38,6.7859]
[1746485222406,6.7854,147.4,147.38,6.7859]
[1746485222607,26.04,147.43,147.37,7.7864]
[1746485223109,6.7861,147.38,147.37,1.0]
[1746485229706,32.4459,147.39,147.37,1.0]
[1746485230508,25.66,147.39,147.37,1.0]
[1746485231509,32.4459,147.39,147.37,1.0]
[1746485232203,32.4459,147.39,147.37,7.7866]
[1746485232399,25.66,147.39,147.37,1.0]
[1746485232602,25.66,147.42,147.37,1.0]
[1746485233707,6.785,147.41,147.38,6.7859]
[1746485233910,25.66,147.42,147.37,1.0]
[1746485234308,25.66,147.42,147.37,7.7865]
[1746485234509,25.66,147.42,147.37,1.0]
[1746485235010,6.7861,147.38,147.37,1.0]
[1746485236310,6.7871,147.36,147.35,2.0]
[1746485239613,25.66,147.41,147.35,2.0]
[1746485240005,32.445,147.41,147.35,2.0]
[1746485240506,32.445,147.41,147.39,6.7854]
[1746485240711,6.785,147.41,147.39,6.7854]
[1746485241013,32.90491656,147.44,147.4,6.7849]
[1746485241313,25.66,147.44,147.4,6.7849]
[1746485241509,25.66,147.44,147.36,25.58]
[1746485241711,6.7846,147.42,147.36,25.58]
[1746485242217,6.7848,147.41,147.39,6.7856]
[1746485243711,25.66,147.44,147.36,25.58]
[1746485243917,25.66,147.44,147.4,6.785]
[1746485244715,13.5598,147.52,147.42,6.7843]
[1746485245020,7.24491656,147.51,147.4,25.58]
[1746485245318,7.24491656,147.51,147.41,27.5945]
[1746485245813,6.7823,147.47,147.44,6.7831]
[1746485247020,6.7825,147.46,147.44,6.7831]
[1746485248320,25.58,147.49,147.41,27.5945]
[1746485249325,25.58,147.49,147.43,6.7836]
[1746485249823,6.7829,147.46,147.43,6.7836]
[1746485251722,6.784,147.43,147.41,2.0145]
[1746485251921,7.24491656,147.48,147.41,2.0145]
[1746485252226,6.7836,147.44,147.41,8.7989]
[1746485253220,6.7839,147.43,147.41,8.7989]
[1746485253716,6.7839,147.43,147.41,6.7844]
[1746485254730,6.7836,147.44,147.41,6.7844]
[1746485255029,7.24491656,147.48,147.41,6.7844]
[1746485255723,6.7839,147.43,147.41,6.7844]
[1746485258523,6.7845,147.42,147.38,25.83794]
[1746485259831,6.7845,147.42,147.39,6.7854]
[1746485262234,6.7845,147.42,147.4,6.7852]
[1746485262739,32.80491656,147.45,147.38,25.83794]
[1746485263032,32.80491656,147.45,147.38,0.27794]
[1746485263227,6.7857,147.4,147.37,10.8287]
[1746485263528,32.80491656,147.45,147.37,6.7866]
[1746485263733,6.7857,147.4,147.37,6.7866]
[1746485264031,32.80491656,147.45,147.37,6.7866]
[1746485264233,6.7861,147.39,147.36,8.864]
[1746485264534,32.80491656,147.45,147.36,2.077]
[1746485265033,6.7857,147.39,147.36,2.077]
[1746485265433,6.7857,147.39,147.36,8.8639]
[1746485265830,6.7857,147.39,147.36,2.077]
[1746485266842,6.7857,147.39,147.37,6.7865]
[1746485267737,6.7854,147.4,147.37,6.7865]
[1746485267936,32.80491656,147.45,147.37,6.7865]
[1746485268338,6.7854,147.4,147.37,6.7865]
[1746485269241,6.7854,147.4,147.38,6.7861]
[1746485269539,6.7854,147.4,147.36,2.077]
[1746485270641,6.7854,147.4,147.38,6.7861]
[1746485273038,6.7849,147.41,147.39,6.7855]
[1746485273435,6.7841,147.43,147.36,2.077]
[1746485274739,6.7835,147.44,147.36,2.077]
[1746485274941,25.56,147.45,147.37,7.24491656]
[1746485275138,25.56,147.45,147.42,6.784]
[1746485275346,32.3433,147.45,147.42,6.784]
[1746485275538,25.56,147.45,147.39,25.56]
[1746485275937,6.7828,147.46,147.43,6.7836]
[1746485276544,6.7828,147.46,147.39,25.56]
[1746485277044,6.7828,147.46,147.43,6.7834]
[1746485280749,6.7828,147.46,147.44,6.7833]
[1746485280946,6.7821,147.47,147.39,25.56]
[1746485281348,6.7821,147.47,147.44,6.7832]
[1746485282050,6.7826,147.46,147.44,6.7832]
[1746485282247,6.7826,147.46,147.43,6.7836]
[1746485282446,6.7826,147.46,147.39,25.56]
[1746485282643,6.7826,147.46,147.44,6.7833]
[1746485283851,25.56,147.48,147.39,25.56]
[1746485284358,6.7837,147.44,147.41,6.7845]
[1746485285655,6.7832,147.45,147.39,25.56]
[1746485286259,25.56,147.48,147.39,25.56]
[1746485286956,6.7822,147.47,147.39,32.80491656]
[1746485287460,6.7822,147.47,147.44,6.7831]
[1746485289762,6.7822,147.47,147.45,6.7829]
[1746485291361,6.7822,147.47,147.44,6.7832]
[1746485292963,6.7822,147.47,147.45,6.7829]
[1746485293262,6.7822,147.47,147.39,32.80491656]
[1746485293962,6.7822,147.47,147.45,6.7829]
[1746485294666,6.7822,147.47,147.39,32.80491656]
[1746485295365,6.7822,147.47,147.44,6.7832]
[1746485295564,6.7826,147.46,147.44,6.7832]
[1746485295765,7.24491656,147.49,147.39,25.56]
[1746485296367,7.24491656,147.46,147.4,6.7848]
[1746485296568,6.7839,147.43,147.4,6.7848]
[1746485296763,32.78491656,147.46,147.39,25.56]
[1746485297272,6.7845,147.42,147.39,32.3453]
[1746485297969,6.7845,147.42,147.39,33.3453]
[1746485298167,6.7841,147.43,147.4,6.7851]
[1746485300373,6.7844,147.42,147.4,6.7851]
[1746485300871,25.54,147.46,147.39,26.56]
[1746485301473,6.7836,147.44,147.39,26.56]
[1746485301771,25.54,147.46,147.39,26.56]
[1746485302172,32.78491656,147.49,147.39,26.56]
[1746485303476,6.7828,147.46,147.43,6.7838]
[1746485307073,6.783,147.45,147.43,6.7838]
[1746485307972,6.7827,147.46,147.44,6.7833]
[1746485308169,25.52,147.48,147.44,6.7833]
[1746485308477,6.7822,147.47,147.44,6.7833]
[1746485312280,11.14491656,147.5,147.39,26.56]
[1746485312577,25.52,147.51,147.41,7.24491656]
[1746485312875,25.52,147.51,147.42,2.1156]
[1746485313177,25.52,147.54,147.43,25.52]
[1746485313378,25.52,147.54,147.43,29.739]
[1746485313779,25.52,147.54,147.49,6.7808]
[1746485313982,25.52,147.54,147.43,29.739]
[1746485314580,6.7801,147.52,147.48,6.7813]
[1746485314874,6.7801,147.52,147.43,29.739]
[1746485316282,6.7801,147.52,147.49,6.7809]
[1746485317479,6.7802,147.51,147.48,6.7815]
[1746485320483,6.7802,147.51,147.49,6.781]
[1746485320781,6.7799,147.52,147.49,6.781]
[1746485322384,27.4789,147.54,147.43,29.739]
[1746485322581,7.24491656,147.53,147.43,29.739]
[1746485323182,7.24491656,147.5,147.43,25.52]
[1746485323379,7.24491656,147.47,147.42,0.29568]
[1746485323680,6.7838,147.43,147.42,0.29568]
[1746485327884,6.7852,147.4,147.39,1.0]
[1746485328190,7.24491656,147.4,147.35,2.0]
[1746485328384,6.7865,147.38,147.35,2.0]
[1746485328688,7.24491656,147.4,147.35,2.0]
[1746485328887,25.5,147.41,147.35,2.0]
[1746485329487,6.7844,147.42,147.38,6.7859]
[1746485329789,9.30461656,147.43,147.35,6.105]
[1746485329989,6.785,147.41,147.37,6.7864]
[1746485330177,6.785,147.41,147.35,6.105]
[1746485330383,9.30461656,147.43,147.35,2.0]
[1746485331289,6.786,147.39,147.36,6.787]
[1746485332193,6.7854,147.4,147.37,6.7863]
[1746485332483,2.0597,147.43,147.35,2.0]
[1746485333487,11.60802344,147.41,147.35,2.0]
[1746485333683,6.7871,147.36,147.35,2.0]
[1746485334696,25.48,147.4,147.35,2.0]
[1746485335494,6.7864,147.38,147.35,8.7874]
[1746485336087,25.48,147.4,147.35,2.0]
[1746485336393,11.60802344,147.56,147.35,27.48]
[1746485336589,25.48,147.45,147.39,6.7857]
[1746485336891,25.48,147.45,147.35,27.48]
[1746485337088,6.7847,147.42,147.38,6.786]
[1746485337289,25.48,147.45,147.35,27.48]
[1746485337695,6.7843,147.42,147.38,6.7858]
[1746485338396,6.7843,147.42,147.39,6.7857]
[1746485338894,25.48,147.45,147.38,6.7858]
[1746485339194,25.48,147.45,147.35,27.48]
[1746485339496,6.7845,147.42,147.39,6.7855]
[1746485340588,25.48,147.45,147.35,27.48]
[1746485341898,6.7846,147.42,147.38,6.7858]
[1746485342097,25.48,147.45,147.38,6.7858]
[1746485342496,6.7848,147.41,147.38,6.7858]
[1746485344799,6.7845,147.42,147.39,6.7856]
[1746485345398,6.7845,147.42,147.35,27.48]
[1746485345399,6.784,147.43,147.4,6.7851]
[1746485345700,25.48,147.45,147.35,27.48]
[1746485345894,32.2627,147.46,147.43,6.7836]
[1746485346094,32.2627,147.46,147.39,25.48]
[1746485346095,25.48,147.46,147.39,25.48]
[1746485346298,25.48,147.49,147.4,31.6246]
[1746485346905,6.7821,147.47,147.44,6.7831]
[1746485347093,25.48,147.49,147.44,6.7831]
[1746485347393,25.48,147.49,147.4,31.6246]
[1746485347900,37.08802344,147.49,147.4,31.6246]
[1746485348100,6.7834,147.44,147.41,6.7845]
[1746485348301,37.08802344,147.49,147.4,31.6246]
[1746485348800,6.7832,147.45,147.42,6.7842]
[1746485349400,6.7834,147.44,147.42,6.7842]
[1746485350500,6.7831,147.45,147.42,6.7842]
[1746485355504,6.7831,147.45,147.4,31.6246]
[1746485355505,25.48,147.49,147.4,31.6246]
[1746485356206,6.7829,147.46,147.42,6.784]
[1746485357202,6.7829,147.46,147.4,31.6246]
[1746485357394,6.7829,147.46,147.43,6.7838]
[1746485357905,6.7829,147.45,147.43,6.7838]
[1746485360110,6.7829,147.45,147.42,6.7841]
[1746485360312,6.7835,147.44,147.4,31.6246]
[1746485360810,6.7835,147.44,147.41,6.7844]
[1746485361612,6.7835,147.44,147.42,6.7843]
[1746485362612,6.7835,147.44,147.41,6.7845]
[1746485364611,6.7835,147.44,147.42,6.7843]
[1746485365110,6.7835,147.44,147.4,31.6246]
[1746485366017,25.46,147.45,147.37,26.46]
[1746485366502,6.7845,147.42,147.39,6.7853]
[1746485370319,6.7845,147.42,147.4,6.7851]
[1746485371319,6.7841,147.43,147.4,6.7851]
[1746485372320,6.7844,147.42,147.39,6.7854]
[1746485373325,6.7844,147.42,147.4,6.7851]
[1746485373621,6.7844,147.42,147.37,26.46]
[1746485373820,6.7844,147.42,147.39,6.7854]
[1746485376420,6.7844,147.42,147.4,6.7851]
[1746485376825,6.7844,147.42,147.37,26.46]
[1746485377220,6.7844,147.42,147.39,6.7854]
[1746485378434,6.7844,147.42,147.37,26.46]
[1746485378932,6.7844,147.42,147.39,6.7854]
[1746485379133,6.7848,147.41,147.39,6.7854]
[1746485380534,6.7845,147.42,147.39,6.7854]
[1746485380736,6.7845,147.42,147.4,6.7851]
[1746485380933,25.46,147.45,147.37,26.46]
[1746485381337,25.46,147.45,147.42,6.784]
[1746485381530,25.46,147.48,147.42,6.784]
[1746485381841,6.7832,147.45,147.42,6.784]
[1746485382434,25.46,147.48,147.43,6.7837]
[1746485382638,25.46,147.48,147.37,26.46]
[1746485382834,6.7829,147.45,147.42,6.7841]
[1746485383639,6.7829,147.45,147.43,6.7838]
[1746485384937,6.7829,147.45,147.42,6.7841]
[1746485386541,6.7829,147.45,147.43,6.7838]
[1746485386841,6.7829,147.45,147.37,26.46]
[1746485387040,6.7829,147.45,147.42,6.784]
[1746485388647,25.46,147.48,147.42,6.784]
[1746485389153,6.7832,147.45,147.42,6.784]
[1746485389744,6.7832,147.45,147.43,6.7838]
[1746485390641,6.7832,147.45,147.42,6.7841]
[1746485393747,6.7835,147.44,147.42,6.7841]
[1746485397850,6.7835,147.44,147.41,6.7845]
[1746485399747,6.7839,147.43,147.4,6.7851]
[1746485399954,7.24830378,147.46,147.37,26.46]
[1746485400552,7.24830378,147.43,147.37,1.0]
[1746485400849,25.42,147.43,147.41,6.7845]
[1746485401045,25.42,147.43,147.37,1.0]
[1746485401353,25.42,147.46,147.38,25.42]
[1746485401551,25.42,147.46,147.42,6.784]
[1746485401946,25.42,147.46,147.43,6.7838]
[1746485402946,25.42,147.46,147.44,6.7833]
[1746485403349,25.42,147.46,147.38,25.42]
[1746485403548,25.42,147.46,147.44,6.7831]
[1746485405356,25.42,147.46,147.45,6.7829]
[1746485407654,39.44960378,147.49,147.46,6.7823]
[1746485408857,39.44960378,147.49,147.47,6.782]
[1746485409246,39.44960378,147.49,147.41,2.0209]
[1746485409757,39.44960378,147.49,147.46,6.7822]
[1746485410057,39.44960378,147.49,147.41,2.0209]
[1746485410359,6.7816,147.48,147.45,6.7827]
[1746485411257,6.782,147.47,147.45,6.7827]
[1746485411853,6.782,147.47,147.44,6.7831]
[1746485412953,25.42,147.49,147.42,25.42]
[1746485413859,6.7816,147.48,147.45,6.7826]
[1746485414862,6.782,147.47,147.45,6.7826]
[1746485415160,25.42,147.49,147.45,6.7826]
[1746485415361,6.7818,147.48,147.45,6.7826]
[1746485419668,6.7827,147.46,147.43,6.7838]
[1746485420964,6.7823,147.47,147.43,6.7838]
[1746485421566,6.7823,147.47,147.44,6.7834]